fUST/lending_fUST_20250104
["ID","MTS","AMOUNT","RATE_DAILY","PERIOD"]
[347584860,1735927841965,-152.0,0.00019249,2]
[347584861,1735927841975,-151.0,0.000193,2]
[347584862,1735927841985,-485.0,0.000193,8]
[347584863,1735927841995,-579.9678828,0.000193,2]
[347584864,1735927842005,-154.6538289,0.000193,2]
[347584865,1735927842015,-153.6400067,0.00019397,2]
[347584866,1735927842024,-365.6124094,0.00019397,2]
[347584867,1735927842034,-153.0,0.00019397,2]
[347584868,1735927842044,-500.0,0.00019451,2]
[347584869,1735927842054,-253.64458878,0.00019451,2]
[347584870,1735927842064,-421.17850618,0.00019451,2]
[347584871,1735927842073,-500.0,0.00019452,3]
[347584872,1735927842083,-500.0,0.00019452,3]
[347584873,1735927842093,-500.0,0.00019452,3]
[347584874,1735927842103,-500.0,0.00019452,3]
[347584875,1735927842113,-500.0,0.00019452,3]
[347584876,1735927842122,-500.0,0.00019452,3]
[347584877,1735927842131,-284.51823896,0.00019452,3]
[347584878,1735927842141,-359.9148835,0.00019452,3]
[347584879,1735927842151,-500.0,0.00019452,3]
[347584880,1735927842161,-500.0,0.00019452,3]
[347584881,1735927842170,-500.0,0.00019452,3]
[347584882,1735927842180,-500.0,0.00019452,3]
[347584883,1735927842189,-500.0,0.00019452,3]
[347584884,1735927842199,-500.0,0.00019452,3]
[347584885,1735927842208,-500.0,0.00019452,3]
[347584886,1735927842218,-500.0,0.00019452,3]
[347584887,1735927842228,-500.0,0.00019452,3]
[347584888,1735927842237,-500.0,0.00019452,3]
[347584889,1735927842246,-500.0,0.00019452,3]
[347584890,1735927842256,-500.0,0.00019452,3]
[347584891,1735927842265,-500.0,0.00019452,3]
[347584892,1735927842275,-500.0,0.00019452,3]
[347584893,1735927842286,-500.0,0.00019452,3]
[347584894,1735927842295,-500.0,0.00019452,3]
[347584895,1735927842304,-500.0,0.00019452,3]
[347584896,1735927842314,-500.0,0.00019452,3]
[347584897,1735927842323,-500.0,0.00019452,3]
[347584898,1735927842332,-500.0,0.00019452,3]
[347584899,1735927842342,-500.0,0.00019452,3]
[347584900,1735927842352,-504.10734173,0.00019452,3]
[347584901,1735927842361,-500.0,0.00019452,3]
[347584902,1735927842372,-500.0,0.00019452,3]
[347584903,1735927842381,-500.0,0.00019452,3]
[347584904,1735927842390,-500.0,0.00019452,3]
[347584905,1735927842399,-500.0,0.00019452,3]
[347584906,1735927842409,-500.0,0.00019452,3]
[347584907,1735927842418,-500.0,0.00019452,3]
[347584908,1735927842429,-764.21,0.00019452,3]
[347584909,1735927842438,-500.0,0.00019452,3]
[347584910,1735927842450,-500.0,0.00019452,3]
[347584911,1735927842459,-500.0,0.00019452,3]
[347584912,1735927842469,-500.0,0.00019452,3]
[347584913,1735927842478,-500.0,0.00019452,3]
[347584914,1735927842487,-500.0,0.00019452,3]
[347584915,1735927842497,-500.0,0.00019452,3]
[347584916,1735927842508,-500.0,0.00019452,3]
[347584917,1735927842518,-500.0,0.00019452,3]
[347584918,1735927842528,-500.0,0.00019452,3]
[347584919,1735927842539,-200.0,0.00019452,3]
[347584920,1735927842548,-500.0,0.00019452,3]
[347584921,1735927842559,-500.0,0.00019452,3]
[347584922,1735927842569,-500.0,0.00019452,3]
[347584923,1735927842579,-550.6,0.00019452,3]
[347584924,1735927842588,-500.0,0.00019452,3]
[347584925,1735927842598,-500.0,0.00019452,3]
[347584926,1735927842607,-500.0,0.00019452,3]
[347584927,1735927842617,-500.0,0.00019452,3]
[347584928,1735927842626,-500.0,0.00019452,3]
[347584929,1735927842636,-500.0,0.00019452,3]
[347584930,1735927842645,-500.0,0.00019452,3]
[347584931,1735927842655,-809.45,0.00019452,3]
[347584932,1735927842666,-534.19,0.00019452,3]
[347584933,1735927842675,-500.0,0.00019452,3]
[347584934,1735927842685,-500.0,0.00019452,3]
[347584935,1735927842694,-500.0,0.00019452,3]
[347584936,1735927842703,-500.0,0.00019452,3]
[347584937,1735927842713,-500.0,0.00019452,3]
[347584938,1735927842723,-429.66193658,0.00019452,3]
[347584939,1735927842733,-500.0,0.00019452,3]
[347584940,1735927842742,-500.0,0.00019452,3]
[347584941,1735927842753,-500.0,0.00019452,3]
[347584942,1735927842762,-500.0,0.00019452,3]
[347584943,1735927842771,-500.0,0.00019452,3]
[347584944,1735927842780,-500.0,0.00019452,3]
[347584945,1735927842790,-504.76654028,0.00019452,3]
[347584946,1735927842800,-500.0,0.00019452,3]
[347584947,1735927842810,-500.0,0.00019452,3]
[347584948,1735927842819,-500.0,0.00019452,3]
[347584949,1735927842829,-615.25,0.00019452,3]
[347584950,1735927842838,-500.0,0.00019452,3]
[347584951,1735927842848,-500.0,0.00019452,3]
[347584952,1735927842858,-500.0,0.00019452,3]
[347584953,1735927842867,-500.0,0.00019452,3]
[347584954,1735927842876,-500.0,0.00019452,3]
[347584955,1735927842886,-500.0,0.00019452,3]
[347584956,1735927842896,-500.0,0.00019452,3]
[347584957,1735927842906,-500.0,0.00019452,3]
[347584958,1735927842915,-500.0,0.00019452,3]
[347584959,1735927842924,-500.0,0.00019452,3]
[347584960,1735927842934,-500.0,0.00019452,3]
[347584961,1735927842944,-500.0,0.00019452,3]
[347584962,1735927842953,-500.0,0.00019452,3]
[347584963,1735927842963,-500.0,0.00019452,3]
[347584964,1735927842973,-500.0,0.00019452,3]
[347584965,1735927842984,-500.0,0.00019452,3]
[347584966,1735927842993,-500.0,0.00019452,3]
[347584967,1735927843003,-500.0,0.00019452,3]
[347584968,1735927843012,-500.0,0.00019452,3]
[347584969,1735927843022,-621.45,0.00019452,3]
[347584970,1735927843032,-500.0,0.00019452,3]
[347584972,1735927843041,-500.0,0.00019452,3]
[347584974,1735927843051,-622.73406031,0.00019452,3]
[347584976,1735927843060,-500.0,0.00019452,3]
[347584978,1735927843070,-500.0,0.00019452,3]
[347584980,1735927843079,-500.0,0.00019452,3]
[347584981,1735927843089,-500.0,0.00019452,3]
[347584982,1735927843099,-500.0,0.00019452,3]
[347584983,1735927843110,-500.0,0.00019452,3]
[347584984,1735927843119,-500.0,0.00019452,3]
[347584986,1735927843129,-500.0,0.00019452,3]
[347584987,1735927843138,-502.11741567,0.00019452,3]
[347584989,1735927843148,-502.54476628,0.00019452,3]
[347584993,1735927843158,-500.0,0.00019452,3]
[347584997,1735927843167,-500.0,0.00019452,3]
[347585001,1735927843176,-500.0,0.00019452,3]
[347585004,1735927843186,-277.99055866,0.00019452,3]
[347585007,1735927843195,-500.0,0.00019452,3]
[347585010,1735927843204,-500.0,0.00019452,3]
[347585012,1735927843213,-500.0,0.00019452,3]
[347585015,1735927843223,-500.0,0.00019452,3]
[347585018,1735927843232,-500.0,0.00019452,3]
[347585021,1735927843242,-500.0,0.00019452,3]
[347585024,1735927843251,-500.0,0.00019452,3]
[347585027,1735927843261,-477.75970893,0.00019452,3]
[347585030,1735927843270,-500.0,0.00019452,3]
[347585033,1735927843279,-500.0,0.00019452,3]
[347585035,1735927843289,-500.0,0.00019452,3]
[347585037,1735927843298,-500.0,0.00019452,3]
[347585039,1735927843308,-500.0,0.00019452,3]
[347585040,1735927843317,-877.95,0.00019452,2]
[347585041,1735927843326,-500.0,0.00019452,3]
[347585043,1735927843336,-500.0,0.00019452,3]
[347585055,1735927843346,-500.0,0.00019452,3]
[347585056,1735927843523,-500.0,0.00019452,3]
[347585057,1735927843537,-500.0,0.00019452,3]
[347585058,1735927843548,-500.0,0.00019452,3]
[347585059,1735927843557,-500.0,0.00019452,3]
[347585060,1735927843567,-521.73,0.00019452,3]
[347585061,1735927843577,-500.0,0.00019452,3]
[347585062,1735927843587,-500.0,0.00019452,3]
[347585063,1735927843596,-500.0,0.00019452,3]
[347585064,1735927843607,-500.0,0.00019452,3]
[347585065,1735927843617,-500.0,0.00019452,3]
[347585066,1735927843627,-500.0,0.00019452,3]
[347585067,1735927843636,-500.0,0.00019452,3]
[347585068,1735927843646,-500.0,0.00019452,3]
[347585069,1735927843657,-1371.88,0.00019452,3]
[347585070,1735927843666,-500.0,0.00019452,3]
[347585071,1735927843677,-500.0,0.00019452,3]
[347585072,1735927843687,-500.0,0.00019452,3]
[347585073,1735927843699,-500.0,0.00019452,3]
[347585074,1735927843708,-618.13,0.00019452,3]
[347585075,1735927843718,-500.0,0.00019452,3]
[347585076,1735927843728,-790.96,0.00019452,3]
[347585077,1735927843737,-500.0,0.00019452,3]
[347585078,1735927843747,-500.0,0.00019452,3]
[347585079,1735927843756,-500.0,0.00019452,3]
[347585080,1735927843765,-626.23,0.00019452,3]
[347585081,1735927843775,-500.0,0.00019452,3]
[347585082,1735927843786,-500.0,0.00019452,3]
[347585083,1735927843795,-500.0,0.00019452,3]
[347585084,1735927843805,-2147.23,0.00019452,3]
[347585085,1735927843815,-500.0,0.00019452,3]
[347585086,1735927843825,-508.03,0.00019452,3]
[347585087,1735927843834,-500.0,0.00019452,3]
[347585088,1735927843844,-500.0,0.00019452,3]
[347585089,1735927843854,-500.0,0.00019452,3]
[347585090,1735927843863,-500.0,0.00019452,3]
[347585091,1735927843873,-1369.41,0.00019452,3]
[347585092,1735927843882,-500.0,0.00019452,3]
[347585093,1735927843892,-4349.26,0.00019452,3]
[347585094,1735927843901,-500.0,0.00019452,3]
[347585095,1735927843911,-20550.13,0.00019452,3]
[347585096,1735927843920,-3677.81,0.00019452,3]
[347585097,1735927843930,-1655.99,0.00019452,3]
[347585098,1735927843939,-500.0,0.00019452,3]
[347585099,1735927843948,-500.0,0.00019452,3]
[347585100,1735927843959,-500.0,0.00019452,3]
[347585101,1735927843968,-500.0,0.00019452,3]
[347585102,1735927843979,-626.5,0.00019452,3]
[347585103,1735927843989,-500.0,0.00019452,3]
[347585104,1735927843998,-801.55,0.00019452,3]
[347585105,1735927844007,-809.52,0.00019452,3]
[347585106,1735927844017,-584.54,0.00019452,3]
[347585107,1735927844026,-565.32,0.00019452,3]
[347585108,1735927844036,-500.0,0.00019452,3]
[347585109,1735927844045,-500.0,0.00019452,3]
[347585110,1735927844054,-500.0,0.00019452,3]
[347585111,1735927844064,-837.49,0.00019452,3]
[347585112,1735927844073,-500.0,0.00019452,3]
[347585113,1735927844082,-500.0,0.00019452,3]
[347585114,1735927844092,-500.0,0.00019452,3]
[347585115,1735927844101,-500.0,0.00019452,3]
[347585116,1735927844111,-500.0,0.00019452,3]
[347585117,1735927844120,-500.0,0.00019452,3]
[347585119,1735927844130,-274.72647043,0.00019452,3]
[347585120,1735927844139,-500.0,0.00019452,3]
[347585121,1735927844148,-500.0,0.00019452,3]
[347585122,1735927844157,-500.0,0.00019452,3]
[347585123,1735927844167,-500.0,0.00019452,3]
[347585124,1735927844176,-500.0,0.00019452,3]
[347585125,1735927844185,-500.0,0.00019452,3]
[347585126,1735927844194,-500.0,0.00019452,3]
[347585127,1735927844205,-500.0,0.00019452,3]
[347585128,1735927844215,-500.0,0.00019452,3]
[347585129,1735927844225,-500.0,0.00019452,3]
[347585130,1735927844234,-500.0,0.00019452,3]
[347585131,1735927844243,-500.0,0.00019452,3]
[347585132,1735927844253,-741.54,0.00019452,3]
[347585133,1735927844262,-500.0,0.00019452,3]
[347585134,1735927844273,-3451.28,0.00019452,3]
[347585135,1735927844283,-500.0,0.00019452,3]
[347585136,1735927844293,-2078.19,0.00019452,3]
[347585137,1735927844303,-500.0,0.00019452,3]
[347585138,1735927844313,-500.0,0.00019452,3]
[347585139,1735927844323,-500.0,0.00019452,3]
[347585140,1735927844332,-500.0,0.00019452,3]
[347585141,1735927844341,-500.0,0.00019452,3]
[347585142,1735927844351,-2378.24,0.00019452,3]
[347585143,1735927844360,-551.19,0.00019452,3]
[347585144,1735927844370,-500.0,0.00019452,3]
[347585145,1735927844380,-514.34,0.00019452,3]
[347585146,1735927844389,-647.8,0.00019452,3]
[347585147,1735927844399,-534.39,0.00019452,3]
[347585148,1735927844408,-583.89,0.00019452,3]
[347585149,1735927844417,-155.99,0.00019452,2]
[347585150,1735927844427,-500.0,0.00019473,2]
[347585151,1735927844436,-500.0,0.00019473,2]
[347585152,1735927844446,-623.21939943,0.00019473,2]
[347585153,1735927844455,-500.0,0.00019473,2]
[347585154,1735927844464,-151.0,0.000195,2]
[347585155,1735927844475,-794.82056366,0.00019524,2]
[347585156,1735927844485,-685.65384903,0.00019583,2]
[347585157,1735927844494,-3000.0,0.00019626,2]
[347585158,1735927844504,-151.0,0.000197,2]
[347585159,1735927844513,-423.73092737,0.00019721,2]
[347585160,1735927844523,-500.0,0.00019726,3]
[347585161,1735927844537,-300.71718422,0.00019726,3]
[347585162,1735927844546,-500.0,0.00019726,3]
[347585163,1735927844556,-500.0,0.00019726,3]
[347585164,1735927844566,-500.0,0.00019726,3]
[347585165,1735927844576,-500.0,0.00019726,3]
[347585166,1735927844586,-500.0,0.00019726,3]
[347585167,1735927844595,-500.0,0.00019726,3]
[347585168,1735927844607,-500.0,0.00019726,3]
[347585169,1735927844618,-500.0,0.00019726,3]
[347585170,1735927844629,-500.0,0.00019726,3]
[347585171,1735927844639,-500.0,0.00019726,3]
[347585172,1735927844648,-510.09533385,0.00019726,3]
[347585173,1735927844658,-500.0,0.00019726,3]
[347585174,1735927844667,-500.0,0.00019726,3]
[347585175,1735927844677,-500.0,0.00019726,3]
[347585176,1735927844687,-502.60873035,0.00019726,3]
[347585177,1735927844696,-500.0,0.00019726,3]
[347585178,1735927844705,-257.03868673,0.00019726,3]
[347585179,1735927844715,-500.0,0.00019726,3]
[347585180,1735927844728,-500.0,0.00019726,3]
[347585181,1735927844739,-500.0,0.00019726,3]
[347585182,1735927844748,-500.0,0.00019726,3]
[347585183,1735927844758,-151.0,0.00019726,2]
[347585184,1735927844767,-500.0,0.00019726,3]
[347585185,1735927844778,-500.0,0.00019726,3]
[347585186,1735927844788,-500.0,0.00019726,3]
[347585187,1735927844798,-271.030568,0.00019726,2]
[347585188,1735927844807,-151.0,0.00019726,2]
[347585189,1735927844816,-500.0,0.00019726,3]
[347585190,1735927844826,-500.0,0.00019726,3]
[347585191,1735927844835,-500.0,0.00019726,3]
[347585192,1735927844845,-151.0,0.00019726,2]
[347585193,1735927844854,-500.0,0.00019726,3]
[347585194,1735927844863,-615.5160007,0.00019726,3]
[347585195,1735927844873,-500.0,0.00019726,3]
[347585196,1735927844882,-500.0,0.00019726,3]
[347585197,1735927844891,-764.21,0.00019726,3]
[347585198,1735927844901,-500.0,0.00019726,3]
[347585199,1735927844910,-159.662136,0.00019726,2]
[347585200,1735927844920,-500.0,0.00019726,3]
[347585201,1735927844929,-500.0,0.00019726,3]
[347585202,1735927844939,-500.0,0.00019726,3]
[347585203,1735927844948,-500.0,0.00019726,3]
[347585204,1735927844958,-500.0,0.00019726,3]
[347585205,1735927844969,-500.0,0.00019726,3]
[347585206,1735927844978,-500.0,0.00019726,3]
[347585207,1735927844988,-500.0,0.00019726,3]
[347585208,1735927844997,-200.0,0.00019726,3]
[347585209,1735927845007,-500.0,0.00019726,3]
[347585210,1735927845016,-151.0,0.00019726,2]
[347585211,1735927845026,-500.0,0.00019726,3]
[347585212,1735927845035,-500.0,0.00019726,3]
[347585213,1735927845044,-550.6,0.00019726,3]
[347585214,1735927845054,-163.51303156,0.00019726,3]
[347585215,1735927845063,-500.0,0.00019726,3]
[347585216,1735927845073,-209.43185394,0.00019726,3]
[347585217,1735927845270,-203.1090632,0.00019178,2]
[347585218,1735927845280,-290.56814606,0.00019726,3]
[347585219,1735927845289,-238.58877152,0.00019726,3]
[347585220,1735927845301,-261.41122848,0.00019726,3]
[347585221,1735927845310,-500.0,0.00019726,3]
[347585222,1735927845320,-500.0,0.00019726,3]
[347585223,1735927845330,-500.0,0.00019726,3]
[347585224,1735927845339,-151.0,0.00019726,2]
[347585225,1735927845348,-809.45,0.00019726,3]
[347585226,1735927845358,-534.19,0.00019726,3]
[347585227,1735927845367,-500.0,0.00019726,3]
[347585228,1735927845376,-500.0,0.00019726,3]
[347585229,1735927845386,-151.0,0.00019726,2]
[347585230,1735927845395,-500.0,0.00019726,3]
[347585231,1735927845404,-504.20451042,0.00019726,3]
[347585232,1735927845414,-500.0,0.00019726,3]
[347585233,1735927845423,-500.0,0.00019726,3]
[347585234,1735927845433,-500.0,0.00019726,3]
[347585235,1735927845442,-500.69687074,0.00019726,3]
[347585236,1735927845452,-156.395316,0.00019726,2]
[347585237,1735927845461,-500.0,0.00019726,3]
[347585238,1735927845471,-500.0,0.00019726,3]
[347585239,1735927845480,-500.0,0.00019726,3]
[347585240,1735927845489,-500.0,0.00019726,3]
[347585241,1735927845498,-500.0,0.00019726,3]
[347585242,1735927845508,-615.25,0.00019726,3]
[347585243,1735927845516,-160.45507775,0.00019726,3]
[347585244,1735927845526,-500.0,0.00019726,3]
[347585245,1735927845538,-500.0,0.00019726,3]
[347585246,1735927845547,-500.0,0.00019726,3]
[347585247,1735927845556,-500.0,0.00019726,3]
[347585248,1735927845566,-500.0,0.00019726,3]
[347585249,1735927845577,-495.0444353,0.00019726,3]
[347585250,1735927845586,-500.0,0.00019726,3]
[347585251,1735927845596,-500.0,0.00019726,3]
[347585252,1735927845605,-500.0,0.00019726,3]
[347585253,1735927845615,-503.50687907,0.00019726,3]
[347585254,1735927845624,-500.0,0.00019726,3]
[347585255,1735927845634,-500.0,0.00019726,3]
[347585256,1735927845643,-500.0,0.00019726,3]
[347585257,1735927845652,-500.0,0.00019726,3]
[347585258,1735927845661,-500.0,0.00019726,3]
[347585259,1735927845671,-151.0,0.00019726,2]
[347585260,1735927845680,-500.0,0.00019726,3]
[347585261,1735927845690,-621.45,0.00019726,3]
[347585262,1735927845700,-151.0,0.00019726,2]
[347585263,1735927845709,-500.0,0.00019726,3]
[347585264,1735927845718,-500.0,0.00019726,3]
[347585265,1735927845728,-151.0,0.00019726,2]
[347585266,1735927845737,-500.0,0.00019726,3]
[347585267,1735927845746,-500.0,0.00019726,3]
[347585268,1735927845756,-500.0,0.00019726,3]
[347585269,1735927845765,-500.0,0.00019726,3]
[347585270,1735927845775,-500.0,0.00019726,3]
[347585271,1735927845784,-500.0,0.00019726,3]
[347585272,1735927845794,-500.0,0.00019726,3]
[347585273,1735927845803,-500.0,0.00019726,3]
[347585274,1735927845813,-500.0,0.00019726,3]
[347585275,1735927845822,-151.0,0.00019726,2]
[347585276,1735927845831,-428.11718168,0.00019726,3]
[347585277,1735927845843,-500.0,0.00019726,3]
[347585278,1735927845853,-500.0,0.00019726,3]
[347585279,1735927845863,-500.0,0.00019726,3]
[347585280,1735927845872,-500.0,0.00019726,3]
[347585281,1735927845882,-500.0,0.00019726,3]
[347585282,1735927845893,-500.0,0.00019726,3]
[347585283,1735927845902,-500.0,0.00019726,3]
[347585285,1735927845912,-500.0,0.00019726,3]
[347585286,1735927845921,-500.0,0.00019726,3]
[347585287,1735927845931,-500.0,0.00019726,3]
[347585288,1735927846063,-500.0,0.00019726,3]
[347585289,1735927846074,-500.0,0.00019726,3]
[347585290,1735927846083,-464.5529154,0.00019726,2]
[347585291,1735927846097,-413.3970846,0.00019726,2]
[347585292,1735927846106,-151.0,0.00019726,2]
[347585293,1735927846116,-500.0,0.00019726,3]
[347585294,1735927846126,-151.0,0.00019726,2]
[347585295,1735927846136,-500.0,0.00019726,3]
[347585296,1735927846145,-637.7871382,0.00019726,3]
[347585298,1735927846154,-507.94560489,0.00019726,3]
[347585300,1735927846163,-4.87017231,0.00019726,3]
[347585305,1735927846375,-495.12982769,0.00019726,3]
[347585306,1735927846384,-500.0,0.00019726,3]
[347585307,1735927846394,-500.0,0.00019726,3]
[347585308,1735927846403,-500.0,0.00019726,3]
[347585309,1735927846412,-500.0,0.00019726,3]
[347585310,1735927846422,-500.0,0.00019726,3]
[347585311,1735927846431,-563.80689592,0.00019726,3]
[347585312,1735927846440,-567.32,0.00019726,3]
[347585313,1735927846450,-500.0,0.00019726,3]
[347585314,1735927846459,-12.96560306,0.00019726,3]
[347585315,1735927846471,-459.72176269,0.00019726,3]
[347585316,1735927846482,-899.19263425,0.00019726,3]
[347585317,1735927846491,-437.91,0.00019726,3]
[347585318,1735927846500,-500.0,0.00019726,3]
[347585319,1735927846510,-500.0,0.00019726,3]
[347585320,1735927846519,-790.96,0.00019726,3]
[347585321,1735927846532,-500.0,0.00019726,3]
[347585322,1735927846542,-151.0,0.00019726,2]
[347585323,1735927846552,-500.0,0.00019726,3]
[347585324,1735927846561,-626.23,0.00019726,3]
[347585325,1735927846571,-151.0,0.00019726,2]
[347585326,1735927846581,-500.0,0.00019726,3]
[347585327,1735927846590,-500.0,0.00019726,3]
[347585328,1735927846600,-500.0,0.00019726,3]
[347585330,1735927846609,-2147.23,0.00019726,3]
[347585332,1735927846619,-500.0,0.00019726,3]
[347585334,1735927846629,-508.03,0.00019726,3]
[347585336,1735927846637,-539.61007778,0.00019726,3]
[347585338,1735927846647,-151.0,0.00019726,2]
[347585339,1735927846657,-500.0,0.00019726,3]
[347585340,1735927846665,-151.0,0.00019726,2]
[347585341,1735927846674,-500.0,0.00019726,3]
[347585342,1735927846684,-500.0,0.00019726,3]
[347585343,1735927846694,-500.0,0.00019726,3]
[347585344,1735927846703,-1369.41,0.00019726,3]
[347585345,1735927846713,-4349.26,0.00019726,3]
[347585346,1735927846724,-151.0,0.00019726,2]
[347585347,1735927846733,-500.0,0.00019726,3]
[347585348,1735927846743,-151.0,0.00019726,2]
[347585349,1735927846754,-1926.16728797,0.00019726,3]
[347585350,1735927846767,-11166.73876579,0.00019726,3]
[347585351,1735927846779,-721.269991,0.00019726,3]
[347585352,1735927846790,-1927.68703323,0.00019726,3]
[347585353,1735927846984,-4808.26692201,0.00019726,3]
[347585354,1735927846993,-3677.81,0.00019726,3]
[347585355,1735927847003,-1655.99,0.00019726,3]
[347585356,1735927847012,-151.0,0.00019726,2]
[347585357,1735927847022,-500.0,0.00019726,3]
[347585358,1735927847031,-500.0,0.00019726,3]
[347585359,1735927847041,-500.0,0.00019726,3]
[347585360,1735927847050,-500.0,0.00019726,3]
[347585361,1735927847060,-626.5,0.00019726,3]
[347585362,1735927847069,-488.40347799,0.00019726,3]
[347585363,1735927847081,-11.59652201,0.00019726,3]
[347585364,1735927847090,-801.55,0.00019726,3]
[347585365,1735927847099,-809.52,0.00019726,3]
[347585366,1735927847110,-584.54,0.00019726,3]
[347585367,1735927847119,-565.32,0.00019726,3]
[347585368,1735927847129,-385.53899646,0.00019726,3]
[347585369,1735927847140,-451.95100354,0.00019726,3]
[347585370,1735927847149,-500.0,0.00019726,3]
[347585371,1735927847159,-80.59840424,0.00019726,3]
[347585384,1735928625804,160.856062,0.00013973,2]
[347585458,1735929032931,-652.75452199,0.00016193,2]
[347585462,1735929032958,-1617.86870492,0.00016193,2]
[347585463,1735929032967,-2270.62322691,0.00016357,2]
[347585465,1735929032976,-295.1084241,0.00016858,2]
[347585467,1735929032985,-207.90472169,0.00017805,2]
[347585469,1735929032996,-207.90472168,0.000179,2]
[347585470,1735929033005,-300.0,0.00017905,2]
[347585471,1735929033014,-3668.34969936,0.00017906,2]
[347585473,1735929033030,-468.915,0.00017906,2]
[347585481,1735929033100,-8097.54726774,0.00017906,2]
[347585483,1735929033110,-2799.58660055,0.00018,2]
[347585485,1735929033120,-349.1282888,0.00018541,2]
[347585487,1735929033129,-352.7299908,0.000186,2]
[347585489,1735929033139,-6442.52371366,0.00018696,2]
[347585491,1735929033149,-429.7736646,0.000187,2]
[347585493,1735929033159,-429.7736646,0.000187,2]
[347585495,1735929033168,-429.7736646,0.000187,2]
[347585497,1735929033179,-157.2,0.000187,2]
[347585499,1735929033187,-509.878,0.0001874,2]
[347585501,1735929033197,-73283.92777244,0.000188,2]
[347585503,1735929033207,-500.0,0.00018868,2]
[347585505,1735929033216,-352.7299908,0.000189,2]
[347585507,1735929033226,-150.0,0.000189,2]
[347585509,1735929033236,-2286.2693142,0.000189,2]
[347585511,1735929033246,-309.5116104,0.00018978,2]
[347585513,1735929033255,-493.1691718,0.00018978,2]
[347585515,1735929033265,-307.6506763,0.00018978,2]
[347585517,1735929033275,-155.9606028,0.00018978,2]
[347585519,1735929033284,-402.6526866,0.00018978,2]
[347585521,1735929033294,-2131.8956992,0.00019,3]
[347585523,1735929033304,-2286.26931414,0.00019038,2]
[347585525,1735929033314,-196.107,0.00019073,2]
[347585527,1735929033324,-584.3439855,0.00019073,2]
[347585529,1735929033334,-8682.88225836,0.0001915,2]
[347585531,1735929033344,-500.0,0.00019163,2]
[347585533,1735929033353,-500.0,0.00019163,2]
[347585535,1735929033363,-500.0,0.00019163,2]
[347585537,1735929033372,-500.0,0.00019163,2]
[347585539,1735929033382,-500.0,0.00019163,2]
[347585541,1735929033392,-500.0,0.00019163,2]
[347585543,1735929033401,-500.0,0.00019163,2]
[347585545,1735929033411,-376.64049445,0.00019163,2]
[347585548,1735929033424,-520.33971942,0.00019163,2]
[347585550,1735929033436,-448.39724032,0.00019163,2]
[347585553,1735929033450,-500.0,0.00019163,2]
[347585555,1735929033463,-500.0,0.00019163,2]
[347585557,1735929033476,-500.0,0.00019163,2]
[347585560,1735929033486,-14790.15999789,0.00019164,2]
[347585595,1735929038570,-505.35528582,0.00019164,2]
[347585599,1735929038595,-11508.22018535,0.00019164,2]
[347585601,1735929038611,-27150.62271894,0.00019164,2]
[347585604,1735929038622,-500.0,0.00019173,2]